Workbook

Sheet DataInput
X1: Combo Box Input Ranges | AD1: Input for VBA and Graph
A2: Step 1 - Enter data (do not skip lines)
X3: mg/L | AD3: ConcentrationUnit: | AF3: 2
A4: Date | B4: Concentration | C4: Non-detect (enter "<") | F4: Step 2 - Enter Other Information | X4: μg/L | AD4: StartDay: | AF4: 1
A5: 1982-05-30 | B5: 2 | C5: < | X5: Toxic Units | AD5: StartMonth: | AF5: 5
A6: 1982-07-06 | B6: 26 | F6: Site: | H6: Sample (copper) | X6: NTU | AD6: EndDay: | AF6: 31
A7: 1982-07-08 | B7: 24 | F7: Concentration Units: | AD7: EndMonth: | AF7: 8
A8: 1982-07-14 | B8: 29 | F8: Analyst: | H8: JB | X8: January | Y8: 1 | Z8: 31 | AB8: 1
A9: 1982-07-21 | B9: 31 | F9: Date: | H9: 2010-06-28 | X9: February | Y9: 2 | Z9: 28 | AB9: =AB8+1 -> 2 | AD9: =MIN(A5:A1048576) -> 1982-05-30 | AE9: =IF(COUNTIF(C5:C1048576,"=<")=0,-100,MinDetLimit) -> 2
A10: 1982-07-22 | B10: 35 | X10: March | Y10: 3 | Z10: 31 | AB10: =AB9+1 -> 3 | AD10: =MAX(A5:A1048576) -> 1983-12-31 | AE10: =AE9 -> 2
A11: 1982-07-23 | B11: 34 | X11: April | Y11: 4 | Z11: 30 | AB11: 4
A12: 1982-07-23 | B12: 38 | X12: May | Y12: 5 | Z12: 31 | AB12: 5
A13: 1982-07-24 | B13: 35 | F13: Step 3 - Define Season Range | X13: June | Y13: 6 | Z13: 30 | AB13: 6 | AD13: =OFFSET(X3,AF3-1,0) -> μg/L
A14: 1982-07-29 | B14: 45 | X14: July | Y14: 7 | Z14: 31 | AB14: 7 | AD14: ="Concentration (" &AD13&")" -> Concentration (μg/L)
A15: 1982-07-30 | B15: 25 | G15: Day | H15: Month | X15: August | Y15: 8 | Z15: 31 | AB15: =AB14+1 -> 8
A16: 1982-07-31 | B16: 25 | F16: Beginning: | X16: September | Y16: 9 | Z16: 30 | AB16: 9
A17: 1982-08-01 | B17: 25 | X17: October | Y17: 10 | Z17: 31 | AB17: =AB16+1 -> 10
A18: 1982-08-07 | B18: 26 | G18: Day | H18: Month | X18: November | Y18: 11 | Z18: 30 | AB18: =AB17+1 -> 11
A19: 1982-08-12 | B19: 41 | F19: Ending: | X19: December | Y19: 12 | Z19: 31 | AB19: 12
A20: 1982-08-14 | B20: 20 | AB20: 13 | AD20: Minimum Detection Limit: | AF20: =MAX(IF(C5:C1048576="<",B5:B1048576)) -> 2
A21: 1982-09-13 | B21: 38 | AB21: 14
A22: 1982-10-19 | B22: 44 | AB22: 15
A23: 1983-05-28 | B23: 9 | AB23: 16
A24: 1983-06-15 | B24: 10 | F24: Step 4 - Process Data (click button) | AB24: 17
A25: 1983-07-10 | B25: 29 | AB25: 18
A26: 1983-08-03 | B26: 33 | AB26: 19
A27: 1983-09-03 | B27: 34 | AB27: 20
A28: 1983-12-31 | B28: 50 | AB28: =AB27+1 -> 21
A29: 1983-09-03 | B29: 34 | AB29: 22
A30: 1983-12-31 | B30: 50 | AB30: 23
AB31: 24
AB32: 25
AB33: 26
AB34: =AB33+1 -> 27
AB35: 28
AB36: 29
AB37: 30
AB38: =AB37+1 -> 31

Sheet Screen
A4: Date | B4: Season | C4: Non-detect | D4: Concentration | H4: Pass | I4: Fail | O4: Data screening tests
A5: 1982-05-30 | B5: S | C5: < | D5: 2 | P5: All Data | Q5: In Season | R5: Out of Season
A6: 1982-07-06 | B6: S | D6: 26 | G6: Screening Tests | H6: All Data | I6: In Season | J6: Out of Season | O6: Two criteria | P6: =AND(H7>=20,H9>1) -> TRUE | Q6: =AND(I7>=20,I9>1) -> TRUE | R6: =AND(J7>=20,J9>1) -> FALSE
A7: 1982-07-08 | B7: S | D7: 24 | G7: Count | H7: 26 | I7: 20 | J7: 6 | O7: All three criteria | P7: =AND(H8<=0.2,H7>=20,H9>1) -> TRUE | Q7: =AND(I8<=0.2,I7>=20,I9>1) -> TRUE | R7: =AND(J8<=0.2,J7>=20,J9>1) -> FALSE
A8: 1982-07-14 | B8: S | D8: 29 | G8: % Non-detects | H8: 0.03846153846 | I8: 0.05 | J8: 0 | O8: Non-detect count | P8: 1 | Q8: 1 | R8: 0
A9: 1982-07-21 | B9: S | D9: 31 | G9: Date Range (years) | H9: 1.589041096 | I9: 1.178082192 | J9: 1.298630137
A10: 1982-07-22 | B10: S | D10: 35
A11: 1982-07-23 | B11: S | D11: 34 | G11: Basic Stats | H11: All Data | I11: In Season | J11: Out of Season
A12: 1982-07-23 | B12: S | D12: 38 | G12: Mean | H12: 30.46153846 | I12: 27.1 | J12: 41.66666667 | L12: Calculated by macro CalculateStatsScreen()
A13: 1982-07-24 | B13: S | D13: 35 | G13: Median | H13: 32 | I13: 27.5 | J13: 41
A14: 1982-07-29 | B14: S | D14: 45 | G14: Standard Dev. | H14: 11.73449878 | I14: 10.73067418 | J14: 7.420691792
A15: 1982-07-30 | B15: S | D15: 25
A16: 1982-07-31 | B16: S | D16: 25
A17: 1982-08-01 | B17: S | D17: 25
A18: 1982-08-07 | B18: S | D18: 26 | G18: Step 5 - Transfer data to next sheet to test for trimming
A19: 1982-08-12 | B19: S | D19: 41
A20: 1982-08-14 | B20: S | D20: 20 | G20: Wilcoxon Rank Sum Test (includes non-detects)
A21: 1983-05-28 | B21: S | D21: 9 | G21: Test positive for seasonality.
A22: 1983-06-15 | B22: S | D22: 10
A23: 1983-07-10 | B23: S | D23: 29 | H23: Full dataset may be transfered, but seasonality is indicated.
A24: 1983-08-03 | B24: S | D24: 33
A25: 1982-09-13 | B25: X | D25: 38 | H25: Transfer in season dataset.
A26: 1982-10-19 | B26: X | D26: 44
A27: 1983-09-03 | B27: X | D27: 34 | H27: Seasonality indicated but out of season data do not meet minimum criteria.
A28: 1983-09-03 | B28: X | D28: 34
A29: 1983-12-31 | B29: X | D29: 50
A30: 1983-12-31 | B30: X | D30: 50

Sheet Trim
A3: =BadDLMsg ->  | H3: Basic Stats | I3: Raw Data | J3: Log Transformed
A4: Date | B4: Season | C4: Non-detect | D4: Concentration | E4: LN (Conc) | F4: Trim | H4: Count | I4: 18 | J4: 18 | L4: Calculated by macro CalculateStatsTrim() | Y4: N-values RD | Z4: N-values LT
A5: 1982-05-30 | B5: S | C5: < | D5: 2 | E5: 0.6931471806 | F5: Y | H5: Mean | I5: 27.5 | J5: 3.249984312 | Y5: 0.9376210205 | Z5: 0.7296625401
A6: 1983-05-28 | B6: S | D6: 9 | E6: 2.197224577 | H6: Median | I6: 27.5 | J6: 3.312696184 | Y6: 0.8292819136 | Z6: 0.6820725373
A7: 1983-06-15 | B7: S | D7: 10 | E7: 2.302585093 | H7: Standard dev. | I7: 8.521598856 | J7: 0.4079289639 | Y7: 0.6717385718 | Z7: 0.5924894083
A8: 1982-08-14 | B8: S | D8: 20 | E8: 2.995732274 | H8: Skew | I8: -0.7760638694 | J8: -1.729104874 | Y8: 0.5673736907 | Z8: 0.5171340301
A9: 1982-07-08 | B9: S | D9: 24 | E9: 3.17805383 | Y9: 0.4591289934 | Z9: 0.442810322
A10: 1982-07-30 | B10: S | D10: 25 | E10: 3.218875825 | Y10: 0.3577277256 | Z10: 0.3301855164
A11: 1982-07-31 | B11: S | D11: 25 | E11: 3.218875825 | H11: Step 6 - Trim data as needed, then perform statistical analyses | Y11: 0.2543898296 | Z11: 0.2169123949
A12: 1982-08-01 | B12: S | D12: 25 | E12: 3.218875825 | Y12: 0.1574800278 | Z12: 0.1172580936
A13: 1982-07-06 | B13: S | D13: 26 | E13: 3.258096538 | H13: W test: W = 0.9304798; p-value = 0.1980 | O13: t | P13: Method for central tendancy | Y13: 0.06914776382 | Z13: 0.0493090188
A14: 1982-08-07 | B14: S | D14: 26 | E14: 3.258096538 | H14: No further trimming needed. | O14: 1 | P14: Number of non-detects | Y14: 0.03159222842 | Z14: 0.02714267976
A15: 1982-07-14 | B15: S | D15: 29 | E15: 3.36729583 | H15: Data ready for statistical analysis. | O15: =COUNTIF(F5:F30004,"Y") -> 2 | P15: Trim count
A16: 1983-07-10 | B16: S | D16: 29 | E16: 3.36729583 | O16: 20 | P16: Total data count (including trimmed)
A17: 1982-07-21 | B17: S | D17: 31 | E17: 3.433987204 | I17: Method for estimation of central tendency | O17: 38.3 | P17: 90th percentile of full dataset
A18: 1983-08-03 | B18: S | D18: 33 | E18: 3.496507561 | I18: Student's t method for normal distribution
A19: 1982-07-23 | B19: S | D19: 34 | E19: 3.526360525
A20: 1982-07-22 | B20: S | D20: 35 | E20: 3.555348061
A21: 1982-07-24 | B21: S | D21: 35 | E21: 3.555348061 | P21: Histogram, untransformed
A22: 1982-07-23 | B22: S | D22: 38 | E22: 3.63758616 | P22: =RDmean-2*RDstdev -> 10.45680229 | Q22: count | R22: bins | S22: label
A23: 1982-08-12 | B23: S | D23: 41 | E23: 3.713572067 | P23: =P$22+(P$29-P$22)*1/7 -> 15.32628735 | Q23: 2 | R23: =Q23 -> 2 | S23: -2 sd
A24: 1982-07-29 | B24: S | D24: 45 | E24: 3.80666249 | F24: Y | P24: =P$22+(P$29-P$22)*2/7 -> 20.19577241 | Q24: 3 | R24: =Q24-Q23 -> 1
P25: =P$22+(P$29-P$22)*3/7 -> 25.06525747 | Q25: 7 | R25: 4
P26: =P$22+(P$29-P$22)*4/7 -> 29.93474253 | Q26: 11 | R26: 4 | S26: Mean
P27: =P$22+(P$29-P$22)*5/7 -> 34.80422759 | Q27: 14 | R27: 3
P28: =P$22+(P$29-P$22)*6/7 -> 39.67371265 | Q28: 17 | R28: 3
P29: =RDmean+2*RDstdev -> 44.54319771 | Q29: 18 | R29: 1 | S29: +2 sd
P31: Histogram, log transformed
P32: =LTmean-2*LTstdev -> 2.434126385 | Q32: count | R32: bins | S32: label
P33: =P$32+(P$39-P$32)*1/7 -> 2.66722865 | Q33: 2 | R33: =Q33 -> 2 | S33: -2 sd
P34: =P$32+(P$39-P$32)*2/7 -> 2.900330915 | Q34: 2 | R34: =Q34-Q33 -> 0
P35: =P$32+(P$39-P$32)*3/7 -> 3.13343318 | Q35: 3 | R35: 1
P36: =P$32+(P$39-P$32)*4/7 -> 3.366535445 | Q36: 9 | R36: 6 | S36: Mean
P37: =P$32+(P$39-P$32)*5/7 -> 3.59963771 | Q37: 16 | R37: 7
P38: =P$32+(P$39-P$32)*6/7 -> 3.832739975 | Q38: 18 | R38: 2
P39: =LTmean+2*LTstdev -> 4.06584224 | Q39: 18 | R39: 0 | S39: +2 sd

Sheet Results
B3: Alaska NCBWQS Analysis (Version 2.0) - Results
B5: Site: | C5: =IF(ISBLANK(DataInput!H6),"",DataInput!H6) -> Sample (copper)
B6: Analyst: | C6: =IF(ISBLANK(DataInput!H8),"",DataInput!H8) -> JB
B7: Date: | C7: =IF(ISBLANK(DataInput!H9),"",DataInput!H9) -> 2010-06-28
B9: Data points: | C9: =TotalN -> 20 | E9: In-Season (5/1-8/31)
B11: Lower 95% Confidence Limit (CL) on 90th Percentile (Conover's Nonparametric Method)
B12: Value: | C12: 35 | D12: =ConcUnits -> μg/L
B14: Lower 95% Confidence Limit (CL) on Central Tendency
B15: Method: | C15: Student's t Method for normal distributions
B16: Value: | C16: 23.26230862 | D16: =D$12 -> μg/L
B20: Published Criteria for Site (enter below)
B21: Acute: | C21: 25 | D21: =D$12 -> μg/L | G21: Define as allowance above natural background of | M21: FALSE
B22: Chronic: | C22: 20 | D22: =D$12 -> μg/L | H22: =D$12 -> μg/L
B24: Natural Condition-Based Criteria for Site
B25: Acute: | C25: =IF(bDefValue=TRUE,URvalue90+G22,URvalue90) -> 35 | D25: =D$12 -> μg/L | E25: =IF(C21>C25,"Published criterion is greater","") -> 
B26: Chronic: | C26: =IF(bDefValue=TRUE,CTvalue+DefValue,CTvalue) -> 23.26230862 | D26: =D$12 -> μg/L | E26: =IF(C22>C26,"Published criterion is greater","") -> 
B28: Alternative Calculations for MDL
C29: Lower 95% CL on 95th Percentile: | D29: 38.41304072 | E29: =D$12 -> μg/L
C30: Lower 95% CL on 90th Percentile: | D30: =URvalue90 -> 35 | E30: =D$12 -> μg/L
C31: Estimated Mean: | D31: 27.5 | E31: =D$12 -> μg/L
C32: Estimated 90th Percentile: | D32: =Trim!O17 -> 38.3 | E32: =D$12 -> μg/L
